Cogmind - Beta 17 @@@ ROGUE MODE // 2026.07.31 @ 21:48:17 Player: quak Result: Destroyed by D-53 Grenadier with Mini Grenade Launcher Performance ------------- Evolutions (0) 0 Regions Visited (2) 400 Robots Destroyed (20) 100 Value Destroyed (439) 439 Prototype IDs (4) 80 Alien Tech Used (0) 0 Bonus (0) 0 TOTAL SCORE: 1019 Bonus ------- None Cogmind --------- Core Integrity 0/250 Matter 160/300 Energy 99/100 System Corruption 1% Temperature Cool (0) Movement Core (50) Location -10/Mines Parts ------- > --- POWER (1) -------- (None) > --- PROPULSION (2) --- (None) > --- UTILITY (2) ------ (None) > --- WEAPON (2) ------- (None) > --- INVENTORY (5) ---- Light Nuclear Core Light Treads Light Treads Light Treads Light Treads Peak State ------------ > --- POWER ------------ Ion Engine > --- PROPULSION ------- Light Treads Light Treads > --- UTILITY ---------- Small Storage Unit Seismic Detector > --- WEAPON ----------- Medium Laser Assault Rifle > --- INVENTORY -------- Light Ion Engine Light Nuclear Core Compact Wheel Light Assault Rifle Light Assault Rifle Grenade Launcher Mining Laser Mining Laser [Rating: 8] Favorites ----------- Power Ion Engine Engine Ion Engine Propulsion Light Treads Treads Light Treads Utility Seismic Detector Device Seismic Detector Storage Large Storage Unit Protection Light Armor Plating Weapon Assault Rifle Energy Gun Medium Laser Ballistic Gun Assault Rifle Launcher Grenade Launcher Special Weapon Mining Laser Build | -11 -10 -10 ------- Run | Yrd Mat Min Slots Evolved . | . . . Power . | . . . Propulsion . | . . . Utility . | . . . Weapon . | . . . Parts Attached 15 | 8 6 1 Power 2 | 2 . . Engine 2 | 2 . . Core . | . . . Reactor . | . . . Propulsion 4 | 2 2 . Treads 4 | 2 2 . Leg . | . . . Wheel . | . . . Hover . | . . . Flight . | . . . Utility 4 | 2 1 1 Device 1 | 1 . . Storage 2 | 1 1 . Processor . | . . . Hackware . | . . . Protection 1 | . . 1 Artifact . | . . . Weapon 5 | 2 3 . Energy Gun 1 | 1 . . Energy Cannon . | . . . Ballistic Gun 2 | 1 1 . Ballistic Cannon . | . . . Launcher 1 | . 1 . Special Weapon 1 | . 1 . Impact Weapon . | . . . Slashing Weapon . | . . . Piercing Weapon . | . . . Special Melee Weapon . | . . . Unidentified Prototypes . | . . . Parts Lost 4 | . 1 3 Power . | . . . Propulsion . | . . . Utility 2 | . . 2 Weapon 2 | . 1 1 Highest Loss Streak 2 | . 1 2 To Critical Strikes . | . . . Average Backups 10 | 3 11 11 Power . | . 1 1 Propulsion 3 | . 3 5 Utility 1 | . 1 1 Weapon 4 | 2 4 2 Tool/Special . | . . . Unused Backups 16 | . 3 13 Power 1 | . . 1 Propulsion 8 | . 1 7 Utility 4 | . 1 3 Weapon 3 | . 1 2 Tool/Special . | . . . Average Slot Usage (%) 96 | . 99 66 Engine 13 | . 14 8 Treads 26 | . 28 17 Device 13 | . 14 8 Storage 13 | . 14 8 Energy Gun 7 | . 8 . Ballistic Gun 16 | . 18 8 Launcher 1 | . . 8 Peak Build Rating 8 | 7 8 8 Average Rating 7 | 5 7 5 On Entrance 5 | . 7 8 Avg Prop Armor Cover (%) . | . . . Naked Turns 12 | . . 12 Heaviest Build 31 | 14 31 31 Greatest Support 40 | 40 40 40 Greatest Overweight (x) . | . . . Average Overweight (x) . | . . . Largest Inventory Capacity 15 | 8 15 15 Average Capacity 12 | 7 13 10 Most Carried 15 | 5 15 15 Average Carried 10 | 3 11 10 Final Capacity 15 | 8 15 5 Final Carried 15 | 5 15 5 Class Distribution -------------------- 100% | Mutant Dominant Class ---------------- Mutant | -10/Materials Mutant | -10/Mines Resources | -11 -10 -10 ----------- Run | Yrd Mat Min Matter Collected 583 | 293 196 94 Remotely . | . . . Salvage Created 593 | 156 307 130 Parts 39 | 18 18 3 Haulers Intercepted . | . . . Recyclers Shooed 2 | 2 . . Parts Field Recycled . | . . . Retrieved Matter . | . . . Parts Self-Destructed . | . . . Prevented . | . . . Parts Restored . | . . . Kills | -11 -10 -10 ------- Run | Yrd Mat Min Combat Hostiles Destroyed 30 | . 9 21 Guns 8 | . 7 1 AOE 22 | . 2 20 Classes Destroyed 7 | 2 4 1 Builder 1 | . 1 . Tunneler 5 | 5 . . Recycler 1 | 1 . . Watcher 2 | . 2 . Swarmer 3 | . 3 . Grunt 8 | . 6 2 Assembled 19 | . . 19 Best Kill Streak 19 | 4 3 19 Combat Bots Only 19 | . 3 19 Max Kills in Single Turn 4 | 1 1 4 Gunslinging . | . . . Exploded 4 | . 1 4 Melee . | . . . Uniques/NPCs Destroyed . | . . . Combat | -11 -10 -10 -------- Run | Yrd Mat Min Hostile Shots Fired 75 | . 39 36 Missed 18 | . 9 9 Hits 57 | . 30 27 Projectile 57 | . 30 27 AOE 10 | . . 10 Critical Strikes 1 | . . 1 Damage Taken 1048 | . 360 688 Core 260 | . 68 192 Absorbed by Shields . | . . . Core Remaining (%) 100 | 100 . . Volleys Fired 72 | 13 42 17 Largest 2 | 2 2 1 Hottest 100 | 70 100 30 Shots Fired 122 | 26 79 17 Gun 106 | 26 75 5 Cannon . | . . . Launcher 14 | . 2 12 Special 2 | . 2 . Kinetic 62 | 13 44 5 Thermal 46 | 13 33 . Explosive 14 | . 2 12 Electromagnetic . | . . . Robot Hit Streak 10 | 4 10 2 Robot Miss Streak 6 | 1 3 6 Penetration Max . | . . . Secondary Targets . | . . . Shots Hit Robots 68 | 16 50 2 Core Hits 77 | 9 20 48 Critical Kills . | . . . Critical Parts Destroyed . | . . . Critical Strikes 5 | 2 3 . Burn 5 | 2 3 . Melee Attacks . | . . . Impact . | . . . Slashing . | . . . Piercing . | . . . Sneak Attacks . | . . . Combat Hostiles . | . . . Follow-up Attacks . | . . . Damage Inflicted 2229 | 179 813 1237 Guns 800 | 179 598 23 Cannons . | . . . Explosions 1429 | . 215 1214 Melee . | . . . Ramming . | . . . Kinetic 397 | 66 308 23 Thermal 457 | 113 290 54 Explosive 1375 | . 215 1160 Electromagnetic . | . . . Impact . | . . . Slashing . | . . . Piercing . | . . . Highest Corruption 1 | . 1 1 Average Corruption 1 | . 1 1 Corruption Purged . | . . . Corruption Blocked . | . . . Effects 5 | . 3 2 Message Errors 1 | . 1 . Matter Fused 2 | . . 2 Energy Discharges 1 | . 1 . Data Loss (minor) 1 | . 1 . Overload Shots . | . . . Overflow Damage 74 | . 51 23 Projectiles . | . . . Explosions 74 | . 51 23 Melee . | . . . Knockbacks . | . . . Impact . | . . . Kinetic . | . . . Secondary . | . . . Self-Inflicted Damage 50 | . 21 29 Shots 3 | . 2 1 Rammed . | . . . Targets Rammed . | . . . Kicked . | . . . Crushed . | . . . Highest Temperature 75 | 70 75 . Average Temperature 28 | 29 28 . Received Heat Transfer 156 | . 156 . Siege Activations . | . . . Martial Activations . | . . . Shielding Activations . | . . . Robots Disrupted . | . . . Combat Hostiles . | . . . Robots Corrupted . | . . . Combat Hostiles . | . . . Parts Fried . | . . . Impact Corruptions . | . . . Robots Melted . | . . . Combat Hostiles . | . . . Parts Melted 1 | 1 . . Heat Transferred 1604 | 481 1073 50 Parts Sabotaged . | . . . Parts Stolen . | . . . Parts Stripped . | . . . Power Chain Reactions . | . . . Alert | -11 -10 -10 ------- Run | Yrd Mat Min Maximum Alert Level . | . . . Low Security (%) 100 | 100 100 100 Level 1 . | . . . Level 2 . | . . . Level 3 . | . . . Level 4 . | . . . Level 5 . | . . . High Security . | . . . Max Security . | . . . Peak Influence 115 | 10 84 115 Initial . | . . . Average 22 | 1 19 79 Influence Increases 495 | 30 300 165 Destroy 0b10 Robot/C 220 | . 180 40 Destroy 0b10 Robot/NC 45 | 30 15 . Destroy Leader 54 | . 44 10 Successful Hack 43 | . 43 . Disable Machine 30 | . . 30 Destroy Structure 73 | . 18 55 Lose Combat Pursuer 30 | . . 30 Influence Decreases 420 | 30 300 90 Time Decay 380 | 30 290 60 Lost Part 40 | . 10 30 Squads Dispatched 1 | . 1 . Investigation . | . . . Extermination . | . . . Reinforcement 1 | . 1 . Assault . | . . . Garrison . | . . . Intercept . | . . . Searches Triggered . | . . . Construction Impeded . | . . . Haulers Reinforced . | . . . Active Scanning Responses . | . . . Cargo Convoy Interrupts . | . . . Stealth | -11 -10 -10 --------- Run | Yrd Mat Min Distress Signals . | . . . Communications Jammed . | . . . Distress Signals . | . . . Times Spotted 42 | . 15 27 Peak Tracking Total 11 | . 4 11 Tactical Retreats 1 | . . 1 Traps | -11 -10 -10 ------- Run | Yrd Mat Min Traps Triggered 1 | . 1 . Indirectly . | . . . Trap Hack Attempts . | . . . Triggered . | . . . Disarmed . | . . . Reprogrammed . | . . . Reused . | . . . Traps Extracted . | . . . Installed . | . . . Triggered . | . . . Machines | -11 -10 -10 ---------- Run | Yrd Mat Min Machines Disabled 2 | . . 2 Max in Single Turn 2 | . . 2 Machines Repaired . | . . . Machines Dismantled . | . . . Machines Sabotaged . | . . . Overloaded Fab Kills . | . . . Hacking | -11 -10 -10 --------- Run | Yrd Mat Min Machines Accessed 9 | . 9 . Terminals 7 | . 7 . Fabricators . | . . . Repair Stations 1 | . 1 . Recycling Units 1 | . 1 . Scanalyzers . | . . . Garrison Access . | . . . Total Hacks 27 | . 27 . Successful 14 | . 14 . Failed 13 | . 13 . Catastrophic . | . . . Database Lockouts . | . . . Manual 12 | . 12 . Terminals 22 | . 22 . Fabricators . | . . . Repair Stations 2 | . 2 . Recycling Units 3 | . 3 . Scanalyzers . | . . . Garrison Access . | . . . Terminal Hacks 8 | . 8 . Part Schematic 1 | . 1 . Prototype ID Bank 3 | . 3 . Branch Access Points 1 | . 1 . Hauler Manifests 2 | . 2 . Zone Layout 1 | . 1 . Fabricator Hacks . | . . . Repair Station Hacks . | . . . Recycling Unit Hacks 2 | . 2 . Report Inventory 1 | . 1 . Retrieve Matter 1 | . 1 . Scanalyzer . | . . . Garrison Access Hacks . | . . . Unauthorized Hacks 4 | . 4 . Terminals 4 | . 4 . Track 1 | . 1 . Botnet 3 | . 3 . Fabricators . | . . . Repair Stations . | . . . Recycling Units . | . . . Scanalyzers . | . . . Garrison Access . | . . . Data Cores Recovered . | . . . Used . | . . . Hacking Detections 8 | . 8 . Full Trace Events . | . . . Feedback Events . | . . . Feedback Blocked . | . . . Robot Schematics Acquired . | . . . Robots Built . | . . . Authchips . | . . . Time . | . . . Total Robot Build Rating . | . . . Part Schematics Acquired 1 | . 1 . Parts Built . | . . . Authchips . | . . . Time . | . . . Total Part Build Rating . | . . . Part Studies Acquired . | . . . Parts Repaired . | . . . Time . | . . . Parts Recycled . | . . . Recycled Matter . | . . . Retrieved Matter . | . . . Retrieved Components . | . . . Parts Scanalyzed . | . . . Part Schematics Acquired . | . . . Parts Damaged . | . . . Bothacking | -11 -10 -10 ------------ Run | Yrd Mat Min Used RIF Installer . | . . . Robots Hacked . | . . . Non-combat . | . . . Combat . | . . . Robot Hacks Applied . | . . . Relay Couplers Released . | . . . Fabnet Peak Effective % . | . . . Robots Rewired . | . . . Allies Hacked . | . . . Hacks Repelled . | . . . Allies | -11 -10 -10 -------- Run | Yrd Mat Min Total Allies . | . . . Largest Group . | . . . Highest-Rated Group . | . . . Highest-Rated Ally . | . . . Total Orders . | . . . Ally Attacks . | . . . Total Damage . | . . . Kills . | . . . Allies Corrupted . | . . . Allies Melted . | . . . Intel | -11 -10 -10 ------- Run | Yrd Mat Min Active Infowar (turns) 1344 | 19 1235 90 Seismic 1344 | 19 1235 90 Robot Analysis Total . | . . . Derelict Logs Recovered 1 | . . 1 Drone Launches . | . . . Drone Recoveries . | . . . Exploration | -11 -10 -10 ------------- Run | Yrd Mat Min Turns Passed 1586 | 189 1242 155 Spaces Moved 853 | 88 632 133 Core 100 | 3 . 97 Treads 753 | 85 632 36 Legs . | . . . Wheels . | . . . Hover . | . . . Flight . | . . . Fastest Speed 50 | 50 160 50 Average Speed 147 | 156 160 79 Slowest Speed 160 | 160 160 160 Overloaded Moves . | . . . Propulsion Burnouts . | . . . Robots Hopped . | . . . Potential Cave-ins . | . . . Cave-ins Triggered . | . . . Exploration Rate (%) 43 | 4 97 30 Regions Visited 2 Branch Regions 1 Pre-discovered Areas 1 | . . 1 Known Exits Taken 1 | . 1 . Unknown Exits Taken 1 | 1 . . Scrap Searched 1 | . . 1 Spaces Dug 2 | . 2 . Terrain Destroyed 95 | . 19 76 Melee . | . . . Projectile 2 | . 2 . AOE 93 | . 17 76 Terrain Rammed . | . . . Walls Destroyed . | . . . Machines Disabled . | . . . Actions | -11 -10 -10 --------- Run | Yrd Mat Min Total 1060 | 112 784 164 Wait 81 | . 68 13 Move 851 | 87 631 133 Hop . | . . . Pick Up 19 | 4 15 . Fast Attach 10 | 7 2 1 Attach 5 | . 5 . Detach 4 | . 4 . Swap 9 | 1 8 . Drop 9 | . 9 . Fire 72 | 13 42 17 Melee . | . . . Ram . | . . . Kick . | . . . Crush . | . . . Escape Stasis . | . . . Rewire . | . . . Trap . | . . . Miscellaneous . | . . . Route ------- -11/Scrapyard -10/Materials (discovered 4 exits: [*Mat x3] / *Min) -10/Mines History --------- Turn | Location | Event 15 | -11/Scrapyard | Discovered new exit (range 15) 190 | -11/Scrapyard | Entered Materials 306 | -10/Materials | Build established: Mutant 443 | -10/Materials | Identified exit to Mines 711 | -10/Materials | Discovered new exit (range 16) 844 | -10/Materials | Discovered new exit (range 9) 1052 | -10/Materials | Discovered new exit (range 13) 1432 | -10/Materials | Entered Mines 1462 | -10/Mines | Learned location of Zion (-6) 1476 | -10/Mines | Assembled infested the area 1492 | -10/Mines | Core integrity fell below 50% 1524 | -10/Mines | Released all parts (5) 1530 | -10/Mines | Destroyed 19 combat bots 1585 | -10/Mines | Core integrity fell below 20% 1587 | -10/Mines | Destroyed by D-53 Grenadier with Mini Grenade Launcher Last Messages --------------- 01522_ Seismic Detector destroyed. 01523_ The unstable cave ceiling collapses. 01524_ Released Lgt. Treads. 01524_ Released Lrg. Storage Unit. 01524_ Released Ion Engine. 01524_ Released Assault Rifle. 01524_ Released Lgt. Treads. 01525_ The unstable cave ceiling collapses. 01525_ Power Shielding crushed. 01526_ The unstable cave ceiling collapses. 01526_ U-05 Engineer lays Concrete. 01528_ The unstable cave ceiling collapses. 01528_ Lgt. Treads crushed. 01528_ U-05 Engineer lays Concrete. 01534_ Searching scrap... 01534_ Found Lgt. Armor Plating. 01534_ Found 41 Matter. 01535_ Acquired 41 matter. 01535_ Acquired Lgt. Armor Plating. 01586_ Lgt. Armor Plating destroyed. Map ----- +----------------------------------------------------+ | | | | | | | | | | | | | | | | | | | | | | | | | | | | | | | ?????????????????????????????????????????????????? | | ?????????????????????????????????????????????????? | | ?????????????????????????????????????????????????? | | ????????????????????????????????#######??????????? | | ???????????????????????????????## " ##??####???? | | ?????????????????####?????????## #### ###### | | ??????????######## ##????#### # # | | ??????????# ###?# % | | ??????????# ##### ### ### ## [ | | ???#####?## ##??# #?###### ##=! | | ??## ### ##### @ ###??????# |[=]* | | ?## ## #????????# ##!! | | ## ## dd # #????????# ==[ | | # #????????# ## | | ###### # #????????###### | | ## ##????#### #?????????????## | | #### #????????# #??????????????# | | ##??# ##???????? ##??????????????# | | ##???# ###???????? #???????????????## | | #????## ##?????????? #???????????????# | | #?????###?????????? ##???????????????# | | #????????????????? ### #????????????????#### ## | | #????????????????? ??# ??????????????????## ## | | ##????????????????#??? #??????????????????## ## | | ##?????????????????????# ???????????????????## ## | | ???????????????????????# ???????????????????## ## | | ???????????????????????#????????????????????##" | | ????????????????????????????????????????????##%"## | | ????????????????????????????????????????????##" ## | | ?????????????????????????????????????????????# ## | | ???????????????????????????????????????????? #? | | ?????????????????????????????????????????? #? | | ?????????????????????????????????????????########? | | ?????????????????????????????????????????????????# | | ?????????????????????????????????????????????????# | +----------------------------------------------------+ Best States ------------- Heat Dissipation 25 Energy Generation 10 Energy Capacity 250 Matter Stores 300 Matter Capacity 300 Sight Range 16 Terrain Scan Density 10 Armor Coverage 150 Evasion (%) 50 Recoil Reduction 2 Item Schematics ----------------- Med. Storage Unit | -10/Materials | Hacked Robot Schematics ------------------ None Fabricated ------------ Nothing Repaired ---------- Nothing Studied --------- None Alien Tech Used ----------------- None Achievements -------------- None Challenges ------------ None Game ------ Seed LaunchShockForcewell Manual? 0 Play Time 00:17:04 Cumulative 42.0 hours Start 2026.07.31 @ 21:33:28 End 2026.07.31 @ 21:48:17 Sessions 1 Manual Loads 0 Difficulty Rogue Special Mode None Game No. 88 Rogue 88 Adventurer 0 Explorer 0 Win Type - Total 3 Types 3/0/0/0/0/0/0/0/0/0 Lore% 40 Gallery% 26 Achievement% 26 Wizard Run 0 Options --------- Layout 1 ASCII 0 Keyboard 0 Movement Mouse Keybinds 0 Fullscreen 1 Font 32/SmallcapsGlow Map View 50x40 Zoom Use 0% Tactical HUD 1 Map Filters NONE Filters NONE Steam 1 RUN: d26bdcb2-e8d6-4cac-b0d6-7884b0294954